Cogmind - Beta 11.1 @@@ ROGUE MODE // 2022.04.27 @ 21:24:07 Player: Boris Result: Destroyed by as-62815 with Assembled Heavy Rifle Performance ------------- Evolutions (0) 0 Regions Visited (2) 400 Robots Destroyed (27) 135 Value Destroyed (630) 630 Prototype IDs (0) 0 Alien Tech Used (0) 0 Bonus (0) 0 TOTAL SCORE: 1165 Bonus ------- None Cogmind --------- Core Integrity 0/250 Matter 244/300 Energy 234/250 System Corruption 0% Temperature Cool (9) Movement Treading (320) Ox2 Location -10/Mines Parts ------- > --- POWER (1) -------- Ion Engine > --- PROPULSION (2) --- Light Treads > --- UTILITY (2) ------ High-capacity Storage Unit Seismic Detector > --- WEAPON (2) ------- Medium Laser Assault Rifle > --- INVENTORY (20) --- Ion Engine Huge Storage Unit Improved Terrain Scanner Transport Network Coupler Hacking Suite Medium Laser Assault Rifle Grenade Launcher Rocket Launcher Peak State ------------ > --- POWER ------------ Ion Engine > --- PROPULSION ------- Light Treads Compact Wheel > --- UTILITY ---------- High-capacity Storage Unit Seismic Detector > --- WEAPON ----------- Medium Laser Rocket Launcher > --- INVENTORY -------- Ion Engine Light Treads Huge Storage Unit Improved Terrain Scanner Transport Network Coupler Hacking Suite Medium Laser Assault Rifle Assault Rifle Grenade Launcher [Rating: 9] Favorites ----------- Power Ion Engine Engine Ion Engine Propulsion Light Treads Treads Light Treads Wheel Compact Wheel Utility Seismic Detector Device Seismic Detector Storage Small Storage Unit Weapon Medium Laser Energy Gun Medium Laser Ballistic Gun Assault Rifle Launcher Rocket Launcher Build | -11 -10 -10 ------- Run | Scr Mat Min Slots Evolved . | . . . Power . | . . . Propulsion . | . . . Utility . | . . . Weapon . | . . . Parts Attached 17 | 7 7 3 Power 2 | 1 1 . Engine 2 | 1 1 . Core . | . . . Reactor . | . . . Propulsion 5 | 2 2 1 Treads 4 | 2 1 1 Leg . | . . . Wheel 1 | . 1 . Hover . | . . . Flight . | . . . Utility 3 | 2 1 . Device 1 | 1 . . Storage 2 | 1 1 . Processor . | . . . Hackware . | . . . Protection . | . . . Artifact . | . . . Weapon 7 | 2 3 2 Energy Gun 2 | 1 1 . Energy Cannon . | . . . Ballistic Gun 4 | 1 2 1 Ballistic Cannon . | . . . Launcher 1 | . . 1 Special Weapon . | . . . Impact Weapon . | . . . Slashing Weapon . | . . . Piercing Weapon . | . . . Special Melee Weapon . | . . . Unidentified Prototypes . | . . . Parts Lost 2 | . . 2 Power . | . . . Propulsion 2 | . . 2 Utility . | . . . Weapon . | . . . Highest Loss Streak 2 | . . 2 To Critical Strikes . | . . . Average Slot Usage (%) 100 | . 100 100 Engine 14 | . 14 14 Treads 24 | . 26 14 Wheel 3 | . 1 14 Device 14 | . 14 14 Storage 14 | . 14 14 Energy Gun 14 | . 14 14 Ballistic Gun 13 | . 14 12 Naked Turns . | . . . Heaviest Build 52 | 13 50 52 Greatest Support 40 | 40 40 16 Greatest Overweight (x) 3 | . 3 3 Average Overweight (x) . | . . 3 Largest Inventory Capacity 20 | 8 20 20 Average Capacity 11 | 7 9 20 Most Carried 10 | 5 9 10 Average Carried 7 | 3 7 9 Final Capacity 20 | 8 20 20 Final Carried 9 | 5 9 9 Class Distribution -------------------- 100% | Mutant Dominant Class ---------------- Mutant | -10/Materials Mutant | -10/Mines Resources | -11 -10 -10 ----------- Run | Scr Mat Min Matter Collected 568 | 277 232 59 Remotely . | . . . Salvage Created 1033 | 155 754 124 Parts 60 | 14 43 3 Haulers Intercepted 1 | . 1 . Recyclers Shooed . | . . . Parts Field Recycled . | . . . Retrieved Matter . | . . . Parts Self-Destructed . | . . . Prevented . | . . . Kills | -11 -10 -10 ------- Run | Scr Mat Min Combat Hostiles Destroyed 20 | . 15 5 Guns 17 | . 15 2 AOE 3 | . . 3 Classes Destroyed 9 | 2 5 2 Builder 1 | . . 1 Tunneler 3 | 3 . . Hauler 1 | . 1 . Recycler 2 | 1 1 . Mechanic 1 | . 1 . Operator 2 | . 2 . Swarmer 3 | . 3 . Grunt 14 | . 12 2 Assembled 3 | . . 3 Best Kill Streak 4 | 4 3 3 Combat Bots Only 3 | . 3 3 Max Kills in Single Turn 2 | 1 2 1 Gunslinging 1 | . 1 . Exploded 1 | . . 1 Melee . | . . . Uniques/NPCs Destroyed . | . . . Combat | -11 -10 -10 -------- Run | Scr Mat Min Damage Taken 937 | . 400 537 Core 257 | . 69 188 Absorbed by Shields . | . . . Core Remaining (%) 100 | 100 . . Volleys Fired 80 | 7 58 15 Largest 2 | 2 2 2 Hottest 70 | 70 70 70 Shots Fired 157 | 14 116 27 Gun 154 | 14 116 24 Cannon . | . . . Launcher 3 | . . 3 Special . | . . . Kinetic 77 | 7 58 12 Thermal 77 | 7 58 12 Explosive 3 | . . 3 Electromagnetic . | . . . Robot Hit Streak 14 | 10 9 14 Robot Miss Streak 4 | . 4 3 Penetration Max . | . . . Secondary Targets 2 | . 1 1 Max Gunslinging Chain 1 | . 1 1 Shots Hit Robots 102 | 10 73 19 Core Hits 56 | 5 39 12 Critical Kills . | . . . Critical Parts Destroyed 1 | . 1 . Critical Strikes 6 | . 4 2 Burn 5 | . 3 2 Destroy 1 | . 1 . Melee Attacks . | . . . Impact . | . . . Slashing . | . . . Piercing . | . . . Sneak Attacks . | . . . Combat Hostiles . | . . . Follow-up Attacks . | . . . Damage Inflicted 1629 | 147 982 500 Guns 1391 | 147 982 262 Cannons . | . . . Explosions 238 | . . 238 Melee . | . . . Ramming . | . . . Kinetic 700 | 96 484 120 Thermal 691 | 51 498 142 Explosive 238 | . . 238 Electromagnetic . | . . . Impact . | . . . Slashing . | . . . Piercing . | . . . Highest Corruption . | . . . Average Corruption . | . . . Corruption Purged . | . . . Corruption Blocked . | . . . Overload Shots . | . . . Overflow Damage 18 | . . 18 Projectiles . | . . . Explosions 18 | . . 18 Melee . | . . . Knockbacks . | . . . Impact . | . . . Kinetic . | . . . Secondary . | . . . Self-Inflicted Damage 52 | . . 52 Shots 2 | . . 2 Rammed 1 | . 1 . Targets Rammed 1 | . 1 . Kicked . | . . . Crushed . | . . . Highest Temperature 213 | 27 117 213 Average Temperature 42 | 11 31 95 Received Heat Transfer 363 | . 180 183 Siege Activations . | . . . Robots Corrupted . | . . . Combat Hostiles . | . . . Parts Fried . | . . . Impact Corruptions . | . . . Robots Melted . | . . . Combat Hostiles . | . . . Parts Melted 3 | . 2 1 Heat Transferred 2331 | 148 1628 555 Parts Sabotaged . | . . . Parts Stolen . | . . . Parts Stripped . | . . . Power Chain Reactions . | . . . Missiles Intercepted . | . . . Alert | -11 -10 -10 ------- Run | Scr Mat Min Peak Influence 283 | 20 283 215 Initial 67 | . 13 67 Average 133 | 6 146 123 Maximum Alert Level 1 | . 1 1 Low Security (%) 80 | 100 75 91 Level 1 19 | . 24 8 Level 2 . | . . . Level 3 . | . . . Level 4 . | . . . Level 5 . | . . . High Security . | . . . Max Security . | . . . Squads Dispatched 5 | . 5 . Investigation 2 | . 2 . Extermination . | . . . Reinforcement 3 | . 3 . Assault . | . . . Garrison . | . . . Intercept . | . . . Searches Triggered . | . . . Construction Impeded . | . . . Haulers Reinforced . | . . . Active Scanning Responses . | . . . Cargo Convoy Interrupts . | . . . Stealth | -11 -10 -10 --------- Run | Scr Mat Min Distress Signals . | . . . Communications Jammed . | . . . Distress Signals . | . . . Times Spotted 40 | . 24 16 Peak Tracking Total 10 | . 5 10 Tactical Retreats 1 | . . 1 Traps | -11 -10 -10 ------- Run | Scr Mat Min Traps Triggered 2 | . 2 . Indirectly . | . . . Trap Hack Attempts . | . . . Triggered . | . . . Disarmed . | . . . Reprogrammed . | . . . Reused . | . . . Traps Extracted . | . . . Installed . | . . . Triggered . | . . . Machines | -11 -10 -10 ---------- Run | Scr Mat Min Machines Disabled . | . . . Max in Single Turn . | . . . Machines Sabotaged . | . . . Garrisons Compromised . | . . . Overloaded Fab Kills . | . . . Hacking | -11 -10 -10 --------- Run | Scr Mat Min Machines Accessed 4 | . 4 . Terminals 3 | . 3 . Fabricators . | . . . Repair Stations . | . . . Recycling Units 1 | . 1 . Scanalyzers . | . . . Garrison Access . | . . . Total Hacks 12 | . 12 . Successful 6 | . 6 . Failed 6 | . 6 . Catastrophic 1 | . 1 . Database Lockouts . | . . . Manual 8 | . 8 . Terminals 11 | . 11 . Fabricators . | . . . Repair Stations . | . . . Recycling Units 1 | . 1 . Scanalyzers . | . . . Garrison Access . | . . . Terminal Hacks 5 | . 5 . Part Schematic 1 | . 1 . Robot Analysis 2 | . 2 . Branch Access Points 1 | . 1 . Terminal Index 1 | . 1 . Fabricator Hacks . | . . . Repair Station Hacks . | . . . Recycling Unit Hacks . | . . . Scanalyzer . | . . . Garrison Access Hacks . | . . . Unauthorized Hacks 1 | . 1 . Terminals . | . . . Fabricators . | . . . Repair Stations . | . . . Recycling Units 1 | . 1 . Tunnel 1 | . 1 . Scanalyzers . | . . . Garrison Access . | . . . Data Cores Recovered . | . . . Used . | . . . Hacking Detections 3 | . 3 . Full Trace Events . | . . . Feedback Events . | . . . Feedback Blocked . | . . . Robot Schematics Acquired . | . . . Robots Built . | . . . Authchips . | . . . Time . | . . . Total Robot Build Rating . | . . . Part Schematics Acquired 1 | . 1 . Parts Built . | . . . Authchips . | . . . Time . | . . . Total Part Build Rating . | . . . Parts Repaired . | . . . Time . | . . . Parts Recycled . | . . . Recycled Matter . | . . . Retrieved Matter . | . . . Retrieved Components . | . . . Parts Scanalyzed . | . . . Part Schematics Acquired . | . . . Parts Damaged . | . . . Bothacking | -11 -10 -10 ------------ Run | Scr Mat Min Used RIF Installer . | . . . Robots Hacked . | . . . Non-combat . | . . . Combat . | . . . Robot Hacks Applied . | . . . Relay Couplers Released . | . . . Fabnet Peak Effective % . | . . . Robots Rewired . | . . . Allies Hacked . | . . . Hacks Repelled . | . . . Allies | -11 -10 -10 -------- Run | Scr Mat Min Total Allies . | . . . Largest Group . | . . . Highest-Rated Group . | . . . Highest-Rated Ally . | . . . Total Orders . | . . . Ally Attacks . | . . . Total Damage . | . . . Kills . | . . . Allies Corrupted . | . . . Allies Melted . | . . . Intel | -11 -10 -10 ------- Run | Scr Mat Min Robot Analysis Total 2 | . 2 . Derelict Logs Recovered 1 | . . 1 Drone Launches . | . . . Drone Recoveries . | . . . Exploration | -11 -10 -10 ------------- Run | Scr Mat Min Turns Passed 1448 | 89 1074 285 Spaces Moved 725 | 37 524 164 Core 5 | 5 . . Treads 489 | 32 457 . Legs . | . . . Wheels 231 | . 67 164 Hover . | . . . Flight . | . . . Fastest Speed 50 | 50 145 145 Average Speed 155 | 145 159 145 Slowest Speed 240 | 160 240 145 Overloaded Moves . | . . . Propulsion Burnouts . | . . . Robots Hopped . | . . . Cave-ins Triggered . | . . . Exploration Rate (%) 42 | 3 87 37 Regions Visited 2 Branch Regions 1 Pre-discovered Areas 2 | . 1 1 Known Exits Taken 1 | . 1 . Unknown Exits Taken 1 | 1 . . Scrap Searched 1 | . . 1 Spaces Dug 17 | . . 17 Terrain Destroyed 43 | . . 43 Melee . | . . . Projectile . | . . . AOE 43 | . . 43 Terrain Rammed . | . . . Walls Destroyed . | . . . Machines Disabled . | . . . Actions | -11 -10 -10 --------- Run | Scr Mat Min Total 885 | 55 647 183 Wait 45 | . 45 . Move 723 | 36 523 164 Hop . | . . . Pick Up 13 | 5 7 1 Fast Attach 9 | 7 2 . Attach 2 | . 1 1 Detach . | . . . Swap 6 | . 4 2 Drop 6 | . 6 . Fire 80 | 7 58 15 Melee . | . . . Ram . | . . . Kick . | . . . Crush 1 | . 1 . Escape Stasis . | . . . Rewire . | . . . Trap . | . . . Miscellaneous . | . . . Route ------- -11/Scrapyard -10/Materials (discovered 5 exits: [*Mat x3] / *Min x2) -10/Mines (discovered 2 exits: [*Mat x2]) History --------- Turn | Location | Event 6 | -11/Scrapyard | Discovered new exit (range 16) 90 | -11/Scrapyard | Entered Materials 222 | -10/Materials | Discovered new exit (range 12) 311 | -10/Materials | Build established: Mutant 413 | -10/Materials | Discovered new exit (range 15) 690 | -10/Materials | Discovered new exit (range 13) 862 | -10/Materials | Identified exit to Mines 971 | -10/Materials | Discovered new exit (range 14) 1164 | -10/Materials | Entered Mines 1181 | -10/Mines | Core integrity fell below 50% 1232 | -10/Mines | Discovered new exit (range 16) 1297 | -10/Mines | Received a Rocket Launcher from a helpful Derelict 1330 | -10/Mines | Discovered new exit (range 5) 1408 | -10/Mines | Assembled infested the area 1447 | -10/Mines | Core integrity fell below 20% 1449 | -10/Mines | Destroyed by as-62815 with Assembled Heavy Rifle Last Messages --------------- 01303_ Acquired Rocket Launcher. 01330_ EXIT=FOUND 01369_ U-05 Engineer destroyed. 01372_ Acquired 3 matter. 01408_ ALERT: Infestation in the mines, dispatching Demolisher response squad. 01420_ as-27080 destroyed. 01422_ Critical hit (Burn: +80). 01422_ as-42766 destroyed. 01422_ Destroyed Asb. F-torch. 01424_ as-32145 destroyed. 01424_ Destroyed Asb. F-torch. 01428_ The unstable cave ceiling collapses. 01432_ C-30 ARC bursts open, deploying its payload. 01432_ D-53 Grenadier unfolds itself. 01432_ as-54657 destroyed. 01435_ The unstable cave ceiling collapses. 01439_ as-13182 destroyed. 01444_ Com. Wheel destroyed. 01446_ Lgt. Treads destroyed. Map ----- +----------------------------------------------------+ | | | | | | | | | | | | | | | | | | | | | | | ?????????????????????????????????????????????????? | | ?????????????????????????????????????????????????? | | ?????????????????????????????????????????????????? | | ?????????????????????????????????????????????????? | | ?????????????????????????????????????????????????? | | ?????????????????????????????????????????????????? | | ?????????????????????????????????????????????????? | | ????????#????????????????????##??????????????????? | | ????????? ?????????????????? a???????????????????? | | ????????## ???????????######a#???????????????????? | | ????????# ?????????## # #???????????????????? | | ???????? ########## ##??????????????????? | | ??????? % # ## ###### ""?????????? | | ???????# d a a a ""?????????? | | ???????# d @ aa""?????????? | | ???????# ## ####???????????????? | | ????????# ## #??????????????????? | | ????????## ### ##??????????????????? | | ?????????##### #?## ## ##???????????????????? | | ?????????????### ##??##??###????????????????????? | | ???????????????# #??????????????????????????????? | | ???????????????# #??????????????????????????????? | | ???????????????# #??????????????????????????????? | | ???????????????# #??????????????????????????????? | | ??????????????? #??????????????????????????????? | | ??????????????? #??????????????????????????????? | | ??????????????? %####???????????????????????????? | | ??????????????? %# ##??????????????????????????? | | ??????????????# #??????????????????????????? | | ??????????????? #??????????????????????????? | | ???????????????# #????????##????????????????? | | ???????????????## ##???????? ????????????????? | | #???????????????#### #????????? #????????????????? | | #?????????????????# #????????? #????????????????? | | #????????????????# #????????? #????????????????? | | ##??????????????# #????????? #????????????????? | | ###????????????# #???????## #????????????????? | | ##???????????# #??????## #????????????????? | | ##??????????# #?????## #????????????????? | +----------------------------------------------------+ Best States ------------- Heat Dissipation 25 Energy Generation 10 Energy Capacity 250 Matter Stores 300 Matter Capacity 300 Sight Range 16 Terrain Scan Density 10 Evasion (%) 40 Recoil Reduction 2 Item Schematics ----------------- Huge Storage Unit | -10/Materials | Hacked Robot Schematics ------------------ None Fabricated ------------ Nothing Alien Tech Used ----------------- None Achievements -------------- None Challenges ------------ None Game ------ Seed PointCargoBrace Manual? 0 Play Time 00:08:38 Cumulative 257.4 hours Start 2022.04.27 @ 21:16:42 End 2022.04.27 @ 21:24:07 Sessions 1 Manual Loads 0 Difficulty Rogue Special Mode None Game No. 94 Rogue 79 Adventurer 15 Explorer 0 Win Type - Total 14 Types 4/0/6/1/2/0/1/0/0 Lore% 84 Gallery% 87 Achievement% 76 Wizard Run 0 Options --------- ASCII 0 Keyboard 0 Movement Numpad Keybinds 0 Fullscreen 1 Font 18/SmallcapsGlow Map View 76x50 Tactical HUD 1 Map Filters NONE Filters NONE Steam 1 RUN: f421fcc9-9fcf-42ab-a5c4-add58fb66d9d